fUST/lending_fUST_20250424
["ID","MTS","AMOUNT","RATE_DAILY","PERIOD"]
[358826633,1745478638638,-3000.0,0.0002101,2]
[358826635,1745478638647,-3000.0,0.0002102,2]
[358826637,1745478638657,-3000.0,0.0002103,2]
[358826638,1745478638666,-4031.892796,0.0002104,2]
[358826639,1745478638675,-587.0,0.00021428,2]
[358826640,1745478638684,-316.36818153,0.00021461,2]
[358826641,1745478638694,-121106.79439944,0.000216,2]
[358826642,1745478638704,-157.2502195,0.00021671,2]
[358826643,1745478638713,-1133.3010594,0.00021671,2]
[358826644,1745478638723,-20663.92884962,0.00021696,2]
[358826645,1745478638733,-708.2597806,0.00021697,2]
[358826646,1745478638748,-151.0,0.000217,3]
[358826647,1745478638763,-500.0,0.00021716,2]
[358826648,1745478638773,-500.0,0.00021716,2]
[358826649,1745478638783,-370000.0,0.00021717,2]
[358826650,1745478638794,-414.85897238,0.00021733,2]
[358826651,1745478638805,-174.266,0.0002174,2]
[358826652,1745478638815,-500.0,0.00021773,2]
[358826653,1745478638825,-500.0,0.00021773,2]
[358826654,1745478638835,-566.6505297,0.00021781,2]
[358826655,1745478638845,-157.2502195,0.00021781,2]
[358826656,1745478638855,-566.6505297,0.00021781,2]
[358826657,1745478638865,-157.2502195,0.00021781,2]
[358826658,1745478638874,-566.6505297,0.00021781,2]
[358826659,1745478638884,-174.7929466,0.00021781,2]
[358826660,1745478638895,-174.7929468,0.00021781,2]
[358826661,1745478638905,-174.7929468,0.00021781,2]
[358826662,1745478638915,-174.7929466,0.00021781,2]
[358826663,1745478638925,-178.3894559,0.00021781,2]
[358826664,1745478638935,-269.5589256,0.00021799,2]
[358826665,1745478638945,-114913.06179728,0.000218,2]
[358826670,1745478640094,-275.3686845,0.000218,2]
[358826696,1745478648449,-239.57232314,0.00017899,2]
[358826697,1745478648459,-500.0,0.00017899,2]
[358826698,1745478648468,-322.59783322,0.00021571,2]
[358826699,1745478648480,-322.59783322,0.00021603,2]
[358826700,1745478648490,-322.59783322,0.00021636,2]
[358826701,1745478648500,-20727.161143,0.000218,2]
[358826702,1745478648511,-687.62910049,0.000218,2]
[358826703,1745478648524,-532.2648,0.000218,2]
[358826704,1745478648543,-556.22657699,0.000218,2]
[358826705,1745478648557,-526.97,0.000218,2]
[358826706,1745478648568,-3751.59904292,0.000218,2]
[358826707,1745478648579,-4836.11269476,0.000218,2]
[358826810,1745479832116,-300.0,0.0001762,2]
[358826812,1745479832126,-300.0,0.0001762,2]
[358826814,1745479832135,-1200.0,0.0001762,2]
[358826816,1745479832144,-300.0,0.0001762,2]
[358826818,1745479832154,-273.45506537,0.0001762,2]
[358826820,1745479832163,-594.85703567,0.0001762,2]
[358826822,1745479832173,-10226.43925548,0.00017624,2]
[358826824,1745479832183,-215.22215448,0.00017625,2]
[358826826,1745479832192,-250.0,0.00017625,2]
[358826828,1745479832202,-1930.18714628,0.000177,2]
[358826830,1745479832211,-500.0,0.000177,2]
[358826832,1745479832221,-500.0,0.000177,2]
[358826834,1745479832233,-160.0,0.00017747,2]
[358826836,1745479832243,-231.71808036,0.000178,2]
[358826838,1745479832252,-500.0,0.000178,2]
[358826840,1745479832262,-500.43560318,0.000178,2]
[358826842,1745479832271,-500.0,0.000178,2]
[358826844,1745479832281,-500.0,0.000178,2]
[358826846,1745479832291,-500.0,0.000178,2]
[358826848,1745479832300,-592.38519665,0.000179,2]
[358826850,1745479832310,-500.0,0.000179,2]
[358826852,1745479832319,-263.947811,0.00018996,2]
[358826854,1745479832330,-357.35608248,0.00019178,2]
[358826856,1745479832340,-300.0,0.00019178,2]
[358826858,1745479832350,-420.0,0.00019233,2]
[358826860,1745479832360,-420.0,0.00019233,2]
[358826862,1745479832369,-307.0,0.00019233,2]
[358826864,1745479832379,-300.0,0.00019328,2]
[358826887,1745479832563,-1930.18714627,0.00019443,2]
[358826890,1745479832606,-153.68148738,0.000197,2]
[358826892,1745479832616,-250.22619673,0.000199,2]
[358826894,1745479832625,-1000.0,0.0002,2]
[358826896,1745479832635,-50001.053057,0.0002,2]
[358826898,1745479832644,-468.680566,0.0002,120]
[358826899,1745479832653,-207.4,0.00020039,2]
[358826901,1745479832663,-250.22619672,0.00020764,2]
[358826903,1745479832673,-600.0,0.00020822,2]
[358826905,1745479832683,-566.6505297,0.00020849,2]
[358826906,1745479832693,-314.500439,0.00020849,2]
[358826908,1745479832703,-238.79446357,0.00020959,2]
[358826909,1745479832947,-119.14207653,0.00020959,2]
[358826910,1745479832957,-1133.3010594,0.00020959,2]
[358826911,1745479832967,-566.6505297,0.00020959,2]
[358826912,1745479832976,-566.6505297,0.00020959,2]
[358826913,1745479832985,-587.0,0.00020993,2]
[358826914,1745479832995,-587.0,0.00020993,2]
[358826915,1745479833007,-1000.0,0.00021,2]
[358826916,1745479833017,-311.78053256,0.00021098,2]
[358826917,1745479833027,-727.5844784,0.00021123,2]
[358826918,1745479833036,-722.478898,0.00021123,2]
[358826919,1745479833045,-722.478898,0.00021123,2]
[358826920,1745479833055,-361.5028103,0.00021123,2]
[358826921,1745479833064,-1930.18714627,0.00021186,2]
[358826922,1745479833073,-441.18526324,0.00021205,2]
[358826923,1745479833086,-125.46526646,0.00021205,2]
[358826924,1745479833095,-189.63745516,0.00021205,2]
[358826955,1745479838017,-500.0,0.00017619,2]
[358826957,1745479838029,-500.0,0.00017619,2]
[358826959,1745479838039,-224.72944877,0.00017619,2]
[358826962,1745479838050,-500.0,0.00017619,2]
[358826964,1745479838060,-192.27942512,0.00017619,2]
[358826966,1745479838070,-500.0,0.00017619,2]
[358826967,1745479838079,-500.0,0.00017619,2]
[358826969,1745479838089,-500.0,0.00017619,2]
[358826971,1745479838099,-500.0,0.00017619,2]
[358826974,1745479838110,-500.0,0.00017619,2]
[358826976,1745479838119,-500.0,0.00017619,2]
[358826978,1745479838129,-500.0,0.00017619,2]
[358826980,1745479838139,-500.0,0.00017619,2]
[358826982,1745479838148,-500.0,0.00017619,2]
[358826984,1745479838158,-500.0,0.00017619,2]
[358826986,1745479838167,-500.0,0.00017619,2]
[358826988,1745479838177,-207.09546939,0.00017619,2]
[358826990,1745479838187,-500.0,0.00017619,2]
[358826992,1745479838198,-623.31072402,0.00017619,2]
[358826994,1745479838208,-500.0,0.00017619,2]
[358826996,1745479838219,-500.0,0.00017619,2]
[358826998,1745479838231,-500.0,0.00017619,2]
[358827000,1745479838243,-500.0,0.00017619,2]
[358827002,1745479838253,-500.0,0.00017619,2]
[358827004,1745479838265,-500.0,0.00017619,2]
[358827006,1745479838275,-500.0,0.00017619,2]
[358827008,1745479838287,-500.0,0.00017619,2]
[358827010,1745479838297,-500.0,0.00017619,2]
[358827012,1745479838307,-500.0,0.00017619,2]
[358827014,1745479838317,-500.0,0.00017619,2]
[358827016,1745479838327,-377.01307454,0.00021205,2]
[358827018,1745479838336,-566.6505297,0.00021397,2]
[358827020,1745479838346,-1133.3010594,0.00021397,2]
[358827022,1745479838356,-1000.0,0.00021471,2]
[358827024,1745479838365,-311.78053257,0.00021563,2]
[358827025,1745479838375,-20663.92884962,0.00021582,2]
[358827026,1745479838385,-250.22619672,0.00021627,2]
[358827027,1745479838395,-337.37144859,0.00021637,2]
[358827028,1745479838405,-566.6505297,0.00021671,2]
[358827029,1745479838414,-340.44994791,0.00021673,2]
[358827030,1745479838424,-529.90378771,0.00021673,2]
[358827031,1745479838434,-500.0,0.00021673,2]
[358827032,1745479838444,-500.0,0.00021673,2]
[358827033,1745479838454,-500.0,0.00021673,2]
[358827034,1745479838464,-500.0,0.00021673,2]
[358827035,1745479838474,-500.0,0.00021673,2]
[358827036,1745479838484,-500.0,0.00021673,2]
[358827037,1745479838493,-500.0,0.00021673,2]
[358827038,1745479838503,-337.37144855,0.00021682,2]
[358827039,1745479838514,-708.2597806,0.00021697,2]
[358827040,1745479838524,-370000.0,0.000217,2]
[358827041,1745479838534,-337.37144855,0.00021727,2]
[358827042,1745479838544,-800.0,0.00021737,2]
[358827043,1745479838554,-174.266,0.00021742,2]
[358827044,1745479838564,-337.37144855,0.00021772,2]
[358827045,1745479838573,-414.85897238,0.00021784,2]
[358827046,1745479838583,-96543.30875279,0.000218,2]
[358827047,1745479838599,-1286.980257,0.000218,2]
[358827048,1745479838773,-34396.83262167,0.000218,2]
[358827049,1745479838782,-151.0,0.000218,2]
[358827050,1745479838792,-151.0,0.000218,2]
[358827051,1745479838801,-174.7929468,0.00021808,2]
[358827052,1745479838810,-337.37144855,0.00021817,2]
[358827053,1745479838819,-160.0,0.00021818,2]
[358827054,1745479838829,-839.95942076,0.00021818,2]
[358827055,1745479838838,-160.0,0.00021818,2]
[358827056,1745479838847,-8869.63681691,0.00021818,2]
[358827131,1745479846138,-162.30558826,0.00021818,2]
[358827132,1745479846148,-160.0,0.00021818,2]
[358827133,1745479846158,-2903.1,0.00021866,2]
[358827134,1745479846167,-2903.1,0.00021866,2]
[358827135,1745479846176,-2903.1,0.00021866,2]
[358827136,1745479846185,-151.0,0.000219,3]
[358827137,1745479846195,-150.0,0.000219,30]
[358827138,1745479846204,-150.0,0.000219,2]
[358827140,1745479846214,-953.0,0.000219,2]
[358827142,1745479846223,-800.0,0.00021909,2]
[358827144,1745479846232,-840.0731918,0.00021916,3]
[358827145,1745479846243,-160.0,0.00021916,3]
[358827146,1745479846252,-12576.49486522,0.00021916,3]
[358827147,1745479846261,-2724.90873843,0.00021916,2]
[358827148,1745479846271,-269.5589256,0.00021916,2]
[358827149,1745479846280,-500.0,0.00021916,2]
[358827150,1745479846290,-508.40541627,0.00021916,2]
[358827151,1745479846299,-500.0,0.00021916,2]
[358827152,1745479846308,-151.0,0.00021916,2]
[358827153,1745479846318,-151.0,0.00021916,2]
[358827154,1745479846327,-151.0,0.00021916,2]
[358827155,1745479846337,-151.0,0.00021916,2]
[358827156,1745479846347,-154.440613,0.00021916,2]
[358827157,1745479846356,-190.474669,0.00021916,2]
[358827158,1745479846366,-190.474669,0.00021916,2]
[358827159,1745479846375,-10000.0,0.00021916,2]
[358827160,1745479846384,-10000.0,0.00021916,2]
[358827161,1745479846394,-6606.64719945,0.00021916,2]
[358827162,1745479846408,-1650.14182655,0.00021916,2]
[358827163,1745479846418,-500.0,0.00021916,2]
[358827164,1745479846428,-19577.01931645,0.00021916,3]
[358827249,1745481032298,-955.63660207,0.0001721,2]
[358827251,1745481032307,-250.0,0.0001731,2]
[358827253,1745481032317,-300.0,0.00017507,2]
[358827255,1745481032326,-300.0,0.00017507,2]
[358827257,1745481032336,-1200.0,0.00017507,2]
[358827259,1745481032345,-500.0,0.00017508,2]
[358827261,1745481032355,-500.0,0.00017508,2]
[358827263,1745481032364,-500.0,0.00017508,2]
[358827265,1745481032374,-500.0,0.00017508,2]
[358827267,1745481032383,-520.71255778,0.00017508,2]
[358827269,1745481032393,-1000.0,0.0001752,2]
[358827271,1745481032403,-286.47263173,0.00017637,2]
[358827273,1745481032411,-621.82474707,0.00017637,2]
[358827275,1745481032421,-3327.9054586,0.00017638,2]
[358827277,1745481032430,-728.0734543,0.00017783,2]
[358827279,1745481032439,-263.947811,0.00017903,2]
[358827282,1745481032449,-500.0,0.00019,2]
[358827283,1745481032458,-500.0,0.00019,2]
[358827285,1745481032468,-500.0,0.00019,2]
[358827288,1745481032479,-1491.13502602,0.00019073,2]
[358827290,1745481032490,-420.0,0.00019112,2]
[358827292,1745481032499,-420.0,0.00019112,2]
[358827294,1745481032508,-2256.69976565,0.00019115,2]
[358827296,1745481032521,-3897.18682328,0.00019115,2]
[358827298,1745481032530,-501.50458303,0.00019173,2]
[358827300,1745481032540,-501.84554274,0.00019173,2]
[358827302,1745481032550,-500.0,0.00019173,2]
[358827304,1745481032563,-500.63479341,0.00019173,2]
[358827306,1745481032573,-209.99546925,0.00019173,2]
[358827308,1745481032582,-500.0,0.00019173,2]
[358827310,1745481032593,-500.0,0.00019173,2]
[358827312,1745481032604,-500.0,0.00019173,2]
[358827314,1745481032614,-500.0,0.00019173,2]
[358827316,1745481032624,-500.0,0.00019173,2]
[358827318,1745481032634,-500.0,0.00019173,2]
[358827320,1745481032645,-500.0,0.00019173,2]
[358827322,1745481032655,-500.0,0.00019173,2]
[358827324,1745481032666,-500.0,0.00019173,2]
[358827326,1745481032676,-500.0,0.00019173,2]
[358827328,1745481032685,-500.0,0.00019173,2]
[358827330,1745481032696,-502.99753103,0.00019173,2]
[358827332,1745481032707,-500.0,0.00019173,2]
[358827334,1745481032717,-500.40300235,0.00019173,2]
[358827336,1745481032726,-500.0,0.00019173,2]
[358827337,1745481032735,-500.0,0.00019173,2]
[358827338,1745481032745,-500.0,0.00019173,2]
[358827339,1745481032754,-501.62364345,0.00019173,2]
[358827341,1745481032764,-500.0,0.00019173,2]
[358827343,1745481032774,-463.34424457,0.00019173,2]
[358827344,1745481032783,-500.0,0.00019173,2]
[358827346,1745481032793,-500.0,0.00019173,2]
[358827347,1745481032803,-500.0,0.00019178,2]
[358827348,1745481032812,-500.0,0.00019178,2]
[358827349,1745481032822,-509.38824268,0.00019178,2]
[358827350,1745481032831,-500.0,0.00019178,2]
[358827351,1745481032841,-500.0,0.00019178,2]
[358827352,1745481032851,-500.0,0.00019178,2]
[358827353,1745481032860,-500.0,0.00019178,2]
[358827354,1745481032870,-500.0,0.00019178,2]
[358827355,1745481032880,-500.0,0.00019178,2]
[358827356,1745481032890,-503.05078921,0.00019178,2]
[358827357,1745481032899,-500.0,0.00019178,2]
[358827358,1745481032910,-500.0,0.00019178,2]
[358827359,1745481032919,-500.0,0.00019178,2]
[358827360,1745481032929,-500.0,0.00019178,2]
[358827361,1745481032939,-500.0,0.00019178,2]
[358827362,1745481032949,-500.0,0.00019178,2]
[358827363,1745481032958,-566.57,0.00019178,2]
[358827364,1745481032967,-500.0,0.00019178,2]
[358827365,1745481032976,-500.0,0.00019178,2]
[358827366,1745481032985,-503.08560404,0.00019178,2]
[358827367,1745481032995,-500.0,0.00019178,2]
[358827368,1745481033004,-500.0,0.00019178,2]
[358827369,1745481033013,-500.0,0.00019178,2]
[358827370,1745481033022,-500.0,0.00019178,2]
[358827371,1745481033032,-500.0,0.00019178,2]
[358827372,1745481033041,-500.0,0.00019178,2]
[358827373,1745481033053,-500.0,0.00019178,2]
[358827374,1745481033062,-500.0,0.00019178,2]
[358827375,1745481033071,-500.0,0.00019178,2]
[358827376,1745481033081,-500.0,0.00019178,2]
[358827377,1745481033092,-500.0,0.00019178,2]
[358827378,1745481033101,-501.06601653,0.00019178,2]
[358827379,1745481033111,-500.0,0.00019178,2]
[358827380,1745481033121,-577.45,0.00019178,2]
[358827381,1745481033131,-500.0,0.00019178,2]
[358827382,1745481033141,-602.28,0.00019178,2]
[358827383,1745481033150,-502.57285542,0.00019178,2]
[358827384,1745481033160,-500.0,0.00019178,2]
[358827385,1745481033170,-500.0,0.00019178,2]
[358827386,1745481033180,-500.0,0.00019178,2]
[358827387,1745481033190,-500.0,0.00019178,2]
[358827388,1745481033199,-500.0,0.00019178,2]
[358827389,1745481033209,-500.0,0.00019178,2]
[358827390,1745481033367,-500.0,0.00019178,2]
[358827391,1745481033378,-500.0,0.00019178,2]
[358827392,1745481033387,-500.0,0.00019178,2]
[358827393,1745481033398,-500.0,0.00019178,2]
[358827394,1745481033408,-500.0,0.00019178,2]
[358827395,1745481033417,-500.0,0.00019178,2]
[358827396,1745481033427,-504.05138199,0.00019178,2]
[358827397,1745481033437,-500.0,0.00019178,2]
[358827398,1745481033447,-500.0,0.00019178,2]
[358827399,1745481033457,-500.0,0.00019178,2]
[358827400,1745481033467,-500.0,0.00019178,2]
[358827401,1745481033477,-500.0,0.00019178,2]
[358827402,1745481033487,-500.0,0.00019178,2]
[358827403,1745481033497,-500.0,0.00019178,2]
[358827404,1745481033507,-500.0,0.00019178,2]
[358827405,1745481033517,-500.0,0.00019178,2]
[358827406,1745481033526,-500.0,0.00019178,2]
[358827407,1745481033536,-500.0,0.00019178,2]
[358827408,1745481033546,-500.0,0.00019178,2]
[358827409,1745481033558,-500.0,0.00019178,2]
[358827410,1745481033569,-725.41,0.00019178,2]
[358827411,1745481033578,-500.0,0.00019178,2]
[358827412,1745481033589,-500.0,0.00019178,2]
[358827413,1745481033600,-500.0,0.00019178,2]
[358827414,1745481033610,-624.23,0.00019178,2]
[358827415,1745481033620,-504.044517,0.00019178,2]
[358827416,1745481033630,-500.0,0.00019178,2]
[358827417,1745481033640,-500.0,0.00019178,2]
[358827418,1745481033650,-913.1,0.00019178,2]
[358827419,1745481033660,-500.0,0.00019178,2]
[358827420,1745481033669,-500.0,0.00019178,2]
[358827421,1745481033679,-500.0,0.00019178,2]
[358827422,1745481033689,-500.0,0.00019178,2]
[358827423,1745481033699,-619.88658735,0.00019178,2]
[358827424,1745481033709,-530.31497209,0.00019178,2]
[358827425,1745481033719,-500.0,0.00019178,2]
[358827426,1745481033729,-500.0,0.00019178,2]
[358827427,1745481033739,-500.0,0.00019178,2]
[358827428,1745481033749,-500.0,0.00019178,2]
[358827429,1745481033758,-500.0,0.00019178,2]
[358827430,1745481033768,-500.0,0.00019178,2]
[358827431,1745481033777,-500.0,0.00019178,2]
[358827432,1745481033787,-500.0,0.00019178,2]
[358827433,1745481033797,-500.0,0.00019178,2]
[358827434,1745481033806,-507.0158736,0.00019178,2]
[358827435,1745481033817,-500.0,0.00019178,2]
[358827436,1745481033828,-500.0,0.00019178,2]
[358827437,1745481033839,-500.0,0.00019178,2]
[358827438,1745481033849,-500.0,0.00019178,2]
[358827439,1745481033858,-500.0,0.00019178,2]
[358827440,1745481033868,-500.0,0.00019178,2]
[358827441,1745481033877,-247.53432834,0.00019178,2]
[358827442,1745481033887,-500.0,0.00019178,2]
[358827443,1745481033897,-500.0,0.00019178,2]
[358827444,1745481033906,-500.0,0.00019178,2]
[358827445,1745481033916,-419.63510708,0.00019178,2]
[358827446,1745481033925,-500.0,0.00019178,2]
[358827447,1745481033935,-500.0,0.00019178,2]
[358827448,1745481033944,-500.0,0.00019178,2]
[358827449,1745481033954,-500.0,0.00019178,2]
[358827450,1745481033964,-567.22189023,0.00019178,2]
[358827451,1745481033974,-500.0,0.00019178,2]
[358827452,1745481033983,-500.0,0.00019178,2]
[358827453,1745481033992,-500.0,0.00019178,2]
[358827454,1745481034002,-500.0,0.00019178,2]
[358827455,1745481034012,-768.5,0.00019178,2]
[358827456,1745481034021,-500.0,0.00019178,2]
[358827457,1745481034031,-500.0,0.00019178,2]
[358827458,1745481034040,-865.64,0.00019178,2]
[358827459,1745481034049,-500.0,0.00019178,2]
[358827460,1745481034058,-500.0,0.00019178,2]
[358827461,1745481034068,-500.0,0.00019178,2]
[358827462,1745481034077,-151.2654259,0.00019178,2]
[358827463,1745481034087,-500.0,0.00019178,2]
[358827464,1745481034096,-524.44760548,0.00019178,2]
[358827465,1745481034106,-500.0,0.00019178,2]
[358827466,1745481034115,-500.0,0.00019178,2]
[358827467,1745481034124,-500.0,0.00019178,2]
[358827468,1745481034134,-500.0,0.00019178,2]
[358827469,1745481034143,-500.0,0.00019178,2]
[358827470,1745481034153,-500.0,0.00019178,2]
[358827471,1745481034163,-500.0,0.00019178,2]
[358827472,1745481034172,-500.0,0.00019178,2]
[358827473,1745481034181,-500.0,0.00019178,2]
[358827474,1745481034191,-500.0,0.00019178,2]
[358827475,1745481034200,-639.83,0.00019178,2]
[358827476,1745481034210,-500.0,0.00019178,2]
[358827477,1745481034220,-500.0,0.00019178,2]
[358827478,1745481034229,-500.0,0.00019178,2]
[358827479,1745481034238,-500.0,0.00019178,2]
[358827480,1745481034248,-428.06250819,0.00019178,2]
[358827481,1745481034257,-500.0,0.00019178,2]
[358827482,1745481034267,-500.0,0.00019178,2]
[358827483,1745481034277,-512.33102215,0.00019178,2]
[358827484,1745481034286,-500.0,0.00019178,2]
[358827485,1745481034295,-500.0,0.00019178,2]
[358827486,1745481034305,-500.0,0.00019178,2]
[358827487,1745481034315,-500.0,0.00019178,2]
[358827488,1745481034324,-500.0,0.00019178,2]
[358827489,1745481034334,-500.0,0.00019178,2]
[358827490,1745481034344,-617.78,0.00019178,2]
[358827491,1745481034354,-500.0,0.00019178,2]
[358827492,1745481034363,-501.17870389,0.00019178,2]
[358827493,1745481034373,-500.0,0.00019178,2]
[358827494,1745481034383,-500.0,0.00019178,2]
[358827495,1745481034392,-500.0,0.00019178,2]
[358827496,1745481034402,-500.0,0.00019178,2]
[358827497,1745481034411,-500.0,0.00019178,2]
[358827498,1745481034420,-500.0,0.00019178,2]
[358827499,1745481034430,-500.0,0.00019178,2]
[358827500,1745481034440,-500.0,0.00019178,2]
[358827501,1745481034451,-3938.94,0.00019178,2]
[358827502,1745481034461,-500.0,0.00019178,2]
[358827503,1745481034470,-500.0,0.00019178,2]
[358827504,1745481034480,-500.0,0.00019178,2]
[358827505,1745481034490,-500.0,0.00019178,2]
[358827506,1745481034499,-500.0,0.00019178,2]
[358827507,1745481034508,-500.0,0.00019178,2]
[358827508,1745481034518,-500.0,0.00019178,2]
[358827509,1745481034528,-500.0,0.00019178,2]
[358827510,1745481034542,-1454.43,0.00019178,2]
[358827511,1745481034552,-500.0,0.00019178,2]
[358827512,1745481034564,-500.0,0.00019178,2]
[358827513,1745481034574,-500.70716535,0.00019178,2]
[358827514,1745481034585,-505.28617968,0.00019178,2]
[358827515,1745481034595,-500.0,0.00019178,2]
[358827516,1745481034605,-500.0,0.00019178,2]
[358827517,1745481034615,-526.56586309,0.00019178,2]
[358827518,1745481034624,-500.0,0.00019178,2]
[358827519,1745481034637,-500.0,0.00019178,2]
[358827520,1745481034648,-663.54,0.00019178,2]
[358827521,1745481034658,-500.0,0.00019178,2]
[358827522,1745481034668,-500.0,0.00019178,2]
[358827523,1745481034677,-501.06019913,0.00019178,2]
[358827524,1745481034687,-500.0,0.00019178,2]
[358827525,1745481034696,-500.0,0.00019178,2]
[358827526,1745481034706,-500.0,0.00019178,2]
[358827527,1745481034715,-500.0,0.00019178,2]
[358827528,1745481034725,-441.35833786,0.00019178,2]
[358827529,1745481034735,-500.0,0.00019178,2]
[358827530,1745481034744,-500.0,0.00019178,2]
[358827531,1745481034753,-500.0,0.00019178,2]
[358827532,1745481034763,-500.0,0.00019178,2]
[358827533,1745481034773,-500.0,0.00019178,2]
[358827534,1745481034782,-500.0,0.00019178,2]
[358827535,1745481034792,-500.0,0.00019178,2]
[358827536,1745481034801,-500.0,0.00019178,2]
[358827537,1745481034811,-500.0,0.00019178,2]
[358827538,1745481034821,-390.14802017,0.00019178,2]
[358827539,1745481034830,-500.0,0.00019178,2]
[358827540,1745481034841,-500.0,0.00019178,2]
[358827541,1745481034850,-500.0,0.00019178,2]
[358827542,1745481034861,-500.0,0.00019178,2]
[358827543,1745481034870,-500.0,0.00019178,2]
[358827544,1745481034880,-500.0,0.00019178,2]
[358827545,1745481034889,-500.0,0.00019178,2]
[358827546,1745481034898,-500.0,0.00019178,2]
[358827547,1745481034908,-178.7,0.00019178,2]
[358827548,1745481034917,-512.24761659,0.00019178,2]
[358827549,1745481034927,-557.03,0.00019178,2]
[358827550,1745481034937,-500.0,0.00019178,2]
[358827551,1745481034947,-294.49954688,0.00019178,2]
[358827552,1745481034958,-500.0,0.00019178,2]
[358827553,1745481034969,-500.0,0.00019178,2]
[358827554,1745481034980,-791.77,0.00019178,2]
[358827555,1745481034991,-500.0,0.00019178,2]
[358827556,1745481035001,-500.0,0.00019178,2]
[358827557,1745481035011,-574.93,0.00019178,2]
[358827558,1745481035021,-501.12392354,0.00019178,2]
[358827559,1745481035031,-520.20030811,0.00019178,2]
[358827560,1745481035040,-507.82245022,0.00019178,2]
[358827561,1745481035050,-367.50582067,0.00019178,2]
[358827562,1745481035060,-556.66636369,0.00019178,2]
[358827563,1745481035069,-509.7,0.00019178,2]
[358827564,1745481035079,-500.0,0.00019178,2]
[358827565,1745481035089,-509.00609804,0.00019178,2]
[358827566,1745481035099,-709.24,0.00019178,2]
[358827567,1745481035108,-500.0,0.00019178,2]
[358827568,1745481035117,-500.0,0.00019178,2]
[358827569,1745481035127,-671.03,0.00019178,2]
[358827570,1745481035136,-500.0,0.00019178,2]
[358827571,1745481035146,-500.0,0.00019178,2]
[358827572,1745481035155,-500.0,0.00019178,2]
[358827573,1745481035165,-500.0,0.00019178,2]
[358827574,1745481035175,-500.0,0.00019178,2]
[358827575,1745481035184,-3037.02,0.00019178,2]
[358827576,1745481035194,-500.0,0.00019178,2]
[358827577,1745481035204,-500.0,0.00019178,2]
[358827578,1745481035213,-500.0,0.00019178,2]
[358827579,1745481035223,-500.0,0.00019178,2]
[358827580,1745481035233,-500.0,0.00019178,2]
[358827581,1745481035242,-802.14,0.00019178,2]
[358827582,1745481035252,-500.0,0.00019178,2]
[358827583,1745481035262,-500.0,0.00019178,2]
[358827584,1745481035272,-500.0,0.00019178,2]
[358827585,1745481035282,-500.0,0.00019178,2]
[358827586,1745481035291,-232.48641674,0.00019178,2]
[358827587,1745481035301,-500.0,0.00019178,2]
[358827588,1745481035310,-500.0,0.00019178,2]
[358827589,1745481035320,-928.46,0.00019178,2]
[358827590,1745481035329,-500.0,0.00019178,2]
[358827591,1745481035340,-500.0,0.00019178,2]
[358827592,1745481035349,-1181.28,0.00019178,2]
[358827593,1745481035361,-502.88057313,0.00019178,2]
[358827594,1745481035371,-500.0,0.00019178,2]
[358827595,1745481035382,-776.44,0.00019178,2]
[358827596,1745481035391,-510.88343741,0.00019178,2]
[358827597,1745481035402,-500.0,0.00019178,2]